Cogmind - Beta 11 @@@ ROGUE MODE // 2022.04.18 @ 12:05:59 Player: Mairon Result: Destroyed by G-34 Mercenary with Small Laser Performance ------------- Evolutions (0) 0 Regions Visited (1) 200 Robots Destroyed (6) 30 Value Destroyed (217) 217 Prototype IDs (0) 0 Alien Tech Used (0) 0 Bonus (0) 0 TOTAL SCORE: 447 Bonus ------- None Cogmind --------- Core Integrity 0/250 Matter 286/300 Energy 250/250 System Corruption 0% Temperature Cool (6) Movement Core (200) Ox3 Location -10/Materials Parts ------- > --- POWER (1) -------- Ion Engine > --- PROPULSION (2) --- (None) > --- UTILITY (2) ------ Small Storage Unit > --- WEAPON (2) ------- (None) > --- INVENTORY (8) ---- (None) Peak State ------------ > --- POWER ------------ Ion Engine > --- PROPULSION ------- Aluminum Leg Aluminum Leg > --- UTILITY ---------- Small Storage Unit > --- WEAPON ----------- Assault Rifle Light Assault Rifle > --- INVENTORY -------- Ion Engine [Rating: 6] Favorites ----------- Power Ion Engine Engine Ion Engine Propulsion Aluminum Leg Leg Aluminum Leg Utility Small Storage Unit Storage Small Storage Unit Weapon Assault Rifle Ballistic Gun Assault Rifle Build | -11 -10 ------- Run | Scr Mat Slots Evolved . | . . Power . | . . Propulsion . | . . Utility . | . . Weapon . | . . Parts Attached 9 | 6 3 Power 3 | 1 2 Engine 3 | 1 2 Core . | . . Reactor . | . . Propulsion 3 | 2 1 Treads . | . . Leg 3 | 2 1 Wheel . | . . Hover . | . . Flight . | . . Utility 1 | 1 . Device . | . . Storage 1 | 1 . Processor . | . . Hackware . | . . Protection . | . . Artifact . | . . Weapon 2 | 2 . Energy Gun . | . . Energy Cannon . | . . Ballistic Gun 2 | 2 . Ballistic Cannon . | . . Launcher . | . . Special Weapon . | . . Impact Weapon . | . . Slashing Weapon . | . . Piercing Weapon . | . . Special Melee Weapon . | . . Unidentified Prototypes . | . . Parts Lost 7 | 1 6 Power 2 | . 2 Propulsion 3 | 1 2 Utility . | . . Weapon 2 | . 2 Highest Loss Streak 5 | 1 5 To Critical Strikes . | . . Average Slot Usage (%) 68 | . 68 Engine 12 | . 12 Leg 16 | . 16 Storage 14 | . 14 Ballistic Gun 24 | . 24 Naked Turns . | . . Heaviest Build 13 | 13 13 Greatest Support 20 | 20 20 Greatest Overweight (x) 4 | 4 3 Average Overweight (x) . | . . Largest Inventory Capacity 8 | 8 8 Average Capacity 7 | 7 8 Most Carried 1 | 1 1 Average Carried . | . . Final Capacity 8 | 8 8 Final Carried 1 | 1 . Class Distribution -------------------- 100% | Mutant Dominant Class ---------------- Mutant | -10/Materials Resources | -11 -10 ----------- Run | Scr Mat Matter Collected 402 | 267 135 Remotely . | . . Salvage Created 239 | . 239 Parts 11 | . 11 Haulers Intercepted . | . . Recyclers Shooed 1 | . 1 Parts Field Recycled . | . . Retrieved Matter . | . . Parts Self-Destructed . | . . Prevented . | . . Kills | -11 -10 ------- Run | Scr Mat Combat Hostiles Destroyed 6 | . 6 Guns 6 | . 6 Classes Destroyed 1 | . 1 Grunt 6 | . 6 Best Kill Streak 3 | . 3 Combat Bots Only 3 | . 3 Max Kills in Single Turn 1 | . 1 Gunslinging . | . . Exploded . | . . Melee . | . . Uniques/NPCs Destroyed . | . . Combat | -11 -10 -------- Run | Scr Mat Damage Taken 932 | 184 748 Core 261 | 17 244 Absorbed by Shields . | . . Core Remaining (%) 93 | 93 . Volleys Fired 47 | 3 44 Largest 2 | 2 2 Hottest 40 | 40 40 Shots Fired 67 | 6 61 Gun 67 | 6 61 Cannon . | . . Launcher . | . . Special . | . . Kinetic 67 | 6 61 Thermal . | . . Explosive . | . . Electromagnetic . | . . Robot Hit Streak 9 | 2 9 Robot Miss Streak 2 | 2 2 Penetration Max . | . . Secondary Targets . | . . Shots Hit Robots 47 | 3 44 Core Hits 15 | 1 14 Critical Kills . | . . Critical Parts Destroyed . | . . Critical Strikes . | . . Melee Attacks . | . . Impact . | . . Slashing . | . . Piercing . | . . Sneak Attacks . | . . Combat Hostiles . | . . Follow-up Attacks . | . . Damage Inflicted 543 | 32 511 Guns 541 | 32 509 Cannons . | . . Explosions . | . . Melee . | . . Ramming 2 | . 2 Kinetic 541 | 32 509 Thermal . | . . Explosive . | . . Electromagnetic . | . . Impact . | . . Slashing . | . . Piercing . | . . Highest Corruption . | . . Average Corruption . | . . Corruption Purged . | . . Corruption Blocked . | . . Overload Shots . | . . Overflow Damage . | . . Projectiles . | . . Explosions . | . . Melee . | . . Knockbacks . | . . Impact . | . . Kinetic . | . . Secondary . | . . Self-Inflicted Damage . | . . Shots . | . . Rammed . | . . Targets Rammed 1 | . 1 Kicked 1 | . 1 Crushed . | . . Highest Temperature 24 | . 24 Average Temperature 6 | . 6 Received Heat Transfer 426 | . 426 Siege Activations . | . . Robots Corrupted . | . . Combat Hostiles . | . . Parts Fried . | . . Impact Corruptions . | . . Robots Melted . | . . Combat Hostiles . | . . Parts Melted . | . . Heat Transferred . | . . Parts Sabotaged . | . . Parts Stolen . | . . Parts Stripped . | . . Power Chain Reactions . | . . Missiles Intercepted . | . . Alert | -11 -10 ------- Run | Scr Mat Peak Influence 164 | . 164 Initial . | . . Average 1 | . 64 Maximum Alert Level . | . . Low Security (%) 100 | 100 100 Level 1 . | . . Level 2 . | . . Level 3 . | . . Level 4 . | . . Level 5 . | . . High Security . | . . Max Security . | . . Squads Dispatched 1 | . 1 Investigation 1 | . 1 Extermination . | . . Reinforcement . | . . Assault . | . . Garrison . | . . Intercept . | . . Searches Triggered . | . . Construction Impeded . | . . Haulers Reinforced . | . . Active Scanning Responses . | . . Cargo Convoy Interrupts . | . . Stealth | -11 -10 --------- Run | Scr Mat Distress Signals 2 | . 2 Communications Jammed . | . . Distress Signals . | . . Times Spotted 15 | 1 14 Peak Tracking Total 7 | 1 7 Tactical Retreats 2 | . 2 Traps | -11 -10 ------- Run | Scr Mat Traps Triggered . | . . Indirectly . | . . Trap Hack Attempts . | . . Triggered . | . . Disarmed . | . . Reprogrammed . | . . Reused . | . . Traps Extracted . | . . Installed . | . . Triggered . | . . Machines | -11 -10 ---------- Run | Scr Mat Machines Disabled . | . . Max in Single Turn . | . . Machines Sabotaged . | . . Garrisons Compromised . | . . Overloaded Fab Kills . | . . Hacking | -11 -10 --------- Run | Scr Mat Machines Accessed 2 | . 2 Terminals 2 | . 2 Fabricators . | . . Repair Stations . | . . Recycling Units . | . . Scanalyzers . | . . Garrison Access . | . . Total Hacks 8 | . 8 Successful 4 | . 4 Failed 4 | . 4 Catastrophic . | . . Database Lockouts . | . . Manual . | . . Terminals 8 | . 8 Fabricators . | . . Repair Stations . | . . Recycling Units . | . . Scanalyzers . | . . Garrison Access . | . . Terminal Hacks 4 | . 4 Alert Level 1 | . 1 Locate Traps 1 | . 1 Transport Status 1 | . 1 Zone Layout 1 | . 1 Fabricator Hacks . | . . Repair Station Hacks . | . . Recycling Unit Hacks . | . . Scanalyzer . | . . Garrison Access Hacks . | . . Unauthorized Hacks . | . . Terminals . | . . Fabricators . | . . Repair Stations . | . . Recycling Units . | . . Scanalyzers . | . . Garrison Access . | . . Data Cores Recovered . | . . Used . | . . Hacking Detections 2 | . 2 Full Trace Events 1 | . 1 Feedback Events . | . . Feedback Blocked . | . . Robot Schematics Acquired . | . . Robots Built . | . . Authchips . | . . Time . | . . Total Robot Build Rating . | . . Part Schematics Acquired . | . . Parts Built . | . . Authchips . | . . Time . | . . Total Part Build Rating . | . . Parts Repaired . | . . Time . | . . Parts Recycled . | . . Recycled Matter . | . . Retrieved Matter . | . . Retrieved Components . | . . Parts Scanalyzed . | . . Part Schematics Acquired . | . . Parts Damaged . | . . Bothacking | -11 -10 ------------ Run | Scr Mat Used RIF Installer . | . . Robots Hacked . | . . Non-combat . | . . Combat . | . . Robot Hacks Applied . | . . Relay Couplers Released . | . . Fabnet Peak Effective % . | . . Robots Rewired . | . . Allies Hacked . | . . Hacks Repelled . | . . Allies | -11 -10 -------- Run | Scr Mat Total Allies . | . . Largest Group . | . . Highest-Rated Group . | . . Highest-Rated Ally . | . . Total Orders . | . . Ally Attacks . | . . Total Damage . | . . Kills . | . . Allies Corrupted . | . . Allies Melted . | . . Intel | -11 -10 ------- Run | Scr Mat Robot Analysis Total . | . . Derelict Logs Recovered . | . . Drone Launches . | . . Drone Recoveries . | . . Exploration | -11 -10 ------------- Run | Scr Mat Turns Passed 21999 | 21659 340 Spaces Moved 1210 | 1093 117 Core 22 | 16 6 Treads . | . . Legs 1188 | 1077 111 Wheels . | . . Hover . | . . Flight . | . . Fastest Speed 50 | 50 120 Average Speed 158 | 156 174 Slowest Speed 250 | 250 200 Overloaded Moves . | . . Propulsion Burnouts . | . . Robots Hopped . | . . Cave-ins Triggered . | . . Exploration Rate (%) 63 | 106 20 Regions Visited 1 Branch Regions . Pre-discovered Areas . | . . Known Exits Taken . | . . Unknown Exits Taken 1 | 1 . Scrap Searched . | . . Spaces Dug . | . . Terrain Destroyed . | . . Melee . | . . Projectile . | . . AOE . | . . Terrain Rammed . | . . Walls Destroyed . | . . Machines Disabled . | . . Actions | -11 -10 --------- Run | Scr Mat Total 21226 | 21031 195 Wait 19959 | 19929 30 Move 1209 | 1092 117 Hop . | . . Pick Up 1 | 1 . Fast Attach 8 | 6 2 Attach 1 | . 1 Detach . | . . Swap . | . . Drop . | . . Fire 47 | 3 44 Melee . | . . Ram . | . . Kick 1 | . 1 Crush . | . . Escape Stasis . | . . Rewire . | . . Trap . | . . Miscellaneous . | . . Route ------- -11/Scrapyard -10/Materials History --------- Turn | Location | Event 37 | -11/Scrapyard | Discovered new exit (range 14) 1758 | -11/Scrapyard | Assembled infested the area 21660 | -11/Scrapyard | Entered Materials 21661 | -10/Materials | Build established: Mutant 21955 | -10/Materials | Core integrity fell below 50% 21977 | -10/Materials | Core integrity fell below 20% 22000 | -10/Materials | Destroyed by G-34 Mercenary with Small Laser Last Messages --------------- 21939_ Critical hit (Burn: +37). 21939_ W-16 Scout sends out distress signal. 21948_ G-47 Trooper destroyed. 21953_ K-01 Serf collects debris. 21956_ Aluminum Leg destroyed. 21956_ K-01 Serf collects debris. 21962_ G-34 Mercenary destroyed. 21963_ R-06 Scavenger collects Aluminum Leg. 21966_ R-06 Scavenger collects Lgt. Nuclear Core. 21966_ Aluminum Leg destroyed. 21970_ K-01 Serf collects debris. 21972_ Ion Engine destroyed. 21983_ G-34 Mercenary destroyed. 21983_ K-01 Serf collects debris. 21988_ Assault Rifle destroyed. 21989_ Acquired 46 matter. 21990_ R-06 Scavenger collects Aluminum Leg. 21990_ K-01 Serf destroyed. 21990_ K-01 Serf collects debris. 21991_ Acquired 18 matter. Map ----- +----------------------------------------------------+ | ?????????????????????????????????????????????????? | | ???????????????????????###############???????????? | | ?????????????????####### #???????????? | | ???############### # #???????????? | | ???# # """ """"" #???????????? | | ???# + """ """"" #???????????? | | ???# # """ """"" #???????????? | | ???####+########## %= # #???????????? | | ???# ! #?????#%###################???????????? | | ???# #?????# #????# #???????????????? | | ???# #?????# #????# """ #???????????????? | | ???# #?????#%#????# "Y" #???????????????? | | ???# #?????# #????# #???????????????? | | ???#########???### ###### #???????????????? | | ??? #???????# # """ #???????????????? | | ??? #???????# + """ ]#???????????????? | | ??? #???????# # """ #???????????????? | | ??? #???????###### # #???????????????? | | ???""" #????######### ##########???????????????? | | ???""" #????# T # #########????????????????? | | ???""" #????# # #%* #????????????????? | | ??? #????# + + #????????????????? | | ???################## #%"T" #????????????????? | | ???^^ g############?????????????? | | ???^^ u +?????????????? | | ???^^ k @ #??????????????? | | ???####+############# k #??????????????? | | ???# #????????###### ######??????????????? | | ???# #???########### #???????????????????? | | ???# #???# # #???????????????????? | | ???# """ #???# # #???????????????????? | | ???# """ #???# + #???????????????????? | | ???# """ #???# # #???????????????????? | | ???# #???########### ##??????????????????? | | ???# """ #??????????#" #??????????????????? | | ???????????????????????????? ???????????????????? | | ???????????????????????????? #??????????????????? | | ???????????????????????????? #??????????????????? | | ???????????????????????????? #??????????????????? | | ????????????????????????????? ???????????????????? | | ?????????????????????????????????????????????????? | | ?????????????????????????????????????????????????? | | ?????????????????????????????????????????????????? | | ?????????????????????????????????????????????????? | | ?????????????????????????????????????????????????? | | ?????????????????????????????????????????????????? | | ?????????????????????????????????????????????????? | | ?????????????????????????????????????????????????? | | ?????????????????????????????????????????????????? | | ?????????????????????????????????????????????????? | +----------------------------------------------------+ Best States ------------- Heat Dissipation 25 Energy Generation 10 Energy Capacity 250 Matter Stores 300 Matter Capacity 300 Sight Range 16 Terrain Scan Density 10 Evasion (%) 55 Item Schematics ----------------- None Robot Schematics ------------------ None Fabricated ------------ Nothing Alien Tech Used ----------------- None Achievements -------------- Curiosity Killed The Cat Challenges ------------ None Game ------ Seed RelayThrowingCompressor Manual? 0 Play Time 00:23:09 Cumulative 3.4 hours Start 2022.04.17 @ 23:56:16 End 2022.04.18 @ 12:05:59 Sessions 2 Manual Loads 0 Difficulty Rogue Special Mode None Game No. 4 Rogue 4 Adventurer 0 Explorer 0 Win Type - Total 0 Types 0/0/0/0/0/0/0/0/0 Lore% 19 Gallery% 8 Achievement% 12 Wizard Run 0 Options --------- ASCII 0 Keyboard 0 Movement Mouse Keybinds 0 Fullscreen 2 Font 24/Smallcaps Map View 76x50 Tactical HUD 1 Map Filters NONE Filters NONE Steam 0 RUN: ce50f350-40ab-4c4a-8e40-f8fc59a49505